fUSD/lending_fUSD_20240328
["ID","MTS","AMOUNT","RATE_DAILY","PERIOD"]
[320866107,1711651841679,-508.98,0.00049315,7]
[320866108,1711651841688,-621.0,0.00049315,120]
[320866109,1711651841698,-2298.09,0.00049315,120]
[320866110,1711651841707,-1671.65,0.00049315,120]
[320866111,1711651841716,-500.0,0.00049315,120]
[320866112,1711651841725,-872.13,0.00049315,120]
[320866113,1711651841735,-500.0,0.00049315,120]
[320866114,1711651841745,-629.46,0.00049315,120]
[320866115,1711651841754,-1997.89,0.00049315,120]
[320866116,1711651841763,-500.0,0.00049315,120]
[320866117,1711651841773,-1278.26,0.00049315,120]
[320866118,1711651841782,-500.0,0.00049315,120]
[320866119,1711651841791,-542.61,0.00049315,120]
[320866120,1711651841801,-1219.52,0.00049315,120]
[320866121,1711651841810,-500.0,0.00049315,120]
[320866122,1711651841822,-500.0,0.00049315,120]
[320866123,1711651841831,-564.99,0.00049315,120]
[320866124,1711651841840,-3238.2,0.00049315,120]
[320866125,1711651841850,-1608.26,0.00049315,120]
[320866126,1711651841859,-2336.06,0.00049315,120]
[320866127,1711651841868,-627.05,0.00049315,120]
[320866128,1711651841877,-1068.05,0.00049315,120]
[320866129,1711651841886,-500.0,0.00049315,120]
[320866130,1711651841895,-500.0,0.00049315,120]
[320866131,1711651841904,-2574.96,0.00049315,120]
[320866132,1711651841912,-1791.4,0.00049315,120]
[320866133,1711651841922,-8889.98,0.00049315,120]
[320866134,1711651841931,-500.0,0.00049315,120]
[320866135,1711651841940,-646.93,0.00049315,120]
[320866136,1711651841949,-1074.32,0.00049315,120]
[320866137,1711651841958,-500.0,0.00049315,120]
[320866138,1711651841967,-1595.79,0.00049315,120]
[320866139,1711651841976,-683.43,0.00049315,120]
[320866140,1711651841985,-3067.63,0.00049315,120]
[320866141,1711651841994,-1607.31,0.00049315,120]
[320866142,1711651842003,-500.0,0.00049315,120]
[320866143,1711651842013,-1146.78,0.00049315,120]
[320866144,1711651842024,-500.0,0.00049315,120]
[320866145,1711651842033,-1460.28,0.00049315,120]
[320866146,1711651842044,-531.04,0.00049315,120]
[320866147,1711651842053,-500.0,0.00049315,120]
[320866148,1711651842063,-1274.48,0.00049315,120]
[320866149,1711651842072,-1238.95,0.00049315,120]
[320866150,1711651842082,-500.0,0.00049315,120]
[320866151,1711651842091,-1148.08,0.00049315,120]
[320866152,1711651842101,-594.05,0.00049315,120]
[320866153,1711651842110,-1334.07,0.00049315,120]
[320866154,1711651842119,-1285.39,0.00049315,120]
[320866155,1711651842127,-1855.35,0.00049315,120]
[320866156,1711651842136,-556.47,0.00049315,120]
[320866157,1711651842145,-694.18,0.00049315,120]
[320866158,1711651842155,-17124.26,0.00049315,120]
[320866159,1711651842164,-929.38,0.00049315,120]
[320866160,1711651842173,-1057.9,0.00049315,120]
[320866161,1711651842181,-500.0,0.00049315,120]
[320866162,1711651842191,-700.15,0.00049315,120]
[320866163,1711651842199,-1868.74,0.00049315,120]
[320866164,1711651842208,-304.61732832,0.00049315,120]
[320866165,1711651842217,-2675.33,0.00049315,120]
[320866166,1711651842226,-566.41,0.00049315,120]
[320866167,1711651842235,-1737.13,0.00049315,120]
[320866168,1711651842243,-761.73,0.00049315,120]
[320866169,1711651842252,-631.2551772,0.00049315,120]
[320866170,1711651842261,-623.6,0.00049315,120]
[320866171,1711651842270,-667.32,0.00049315,120]
[320866172,1711651842279,-3008.07,0.00049315,120]
[320866173,1711651842288,-2461.9,0.00049315,120]
[320866174,1711651842297,-545.90066814,0.00049315,120]
[320866175,1711651842306,-1415.31,0.00049315,120]
[320866176,1711651842315,-500.0,0.00049315,120]
[320866177,1711651842326,-1787.83,0.00049315,120]
[320866178,1711651842335,-905.96,0.00049315,120]
[320866179,1711651842344,-635.81,0.00049315,2]
[320866180,1711651842353,-2856.58,0.00049315,120]
[320866181,1711651842363,-2028.09,0.00049315,120]
[320866183,1711651842372,-500.0,0.00049315,120]
[320866184,1711651842380,-1340.74,0.00049315,120]
[320866185,1711651842390,-500.0,0.00049315,120]
[320866186,1711651842399,-500.0,0.00049315,80]
[320866187,1711651842408,-558.47,0.00049315,120]
[320866188,1711651842417,-984.07,0.00049315,120]
[320866189,1711651842426,-500.0,0.00049315,120]
[320866190,1711651842435,-1654.56,0.00049315,120]
[320866191,1711651842444,-500.0,0.00049315,120]
[320866192,1711651842455,-1806.41,0.00049315,120]
[320866193,1711651842463,-3112.97,0.00049315,120]
[320866194,1711651842472,-2366.65,0.00049315,21]
[320866195,1711651842481,-974.28,0.00049315,120]
[320866196,1711651842490,-929.19,0.00049315,120]
[320866197,1711651842499,-500.0,0.00049315,120]
[320866198,1711651842508,-500.0,0.00049315,120]
[320866199,1711651842517,-674.56,0.00049315,120]
[320866200,1711651842526,-1622.72,0.00049315,120]
[320866201,1711651842534,-1258.6,0.00049315,120]
[320866202,1711651842543,-1258.6,0.00049315,120]
[320866203,1711651842552,-500.0,0.00049315,120]
[320866204,1711651842560,-500.0,0.00049315,120]
[320866205,1711651842569,-2438.43,0.00049315,120]
[320866206,1711651842580,-1525.85,0.00049315,120]
[320866207,1711651842589,-1228.31,0.00049315,120]
[320866208,1711651842598,-541.3,0.00049315,120]
[320866209,1711651842606,-586.4,0.00049315,120]
[320866210,1711651842615,-500.0,0.00049315,120]
[320866211,1711651842624,-680.3,0.00049315,120]
[320866212,1711651842632,-1408.91,0.00049315,120]
[320866213,1711651842641,-500.0,0.00049315,120]
[320866214,1711651842650,-1345.47,0.00049315,120]
[320866215,1711651842659,-500.0,0.00049315,120]
[320866216,1711651842668,-2808.28,0.00049315,120]
[320866217,1711651842677,-4343.79,0.00049315,120]
[320866218,1711651842686,-1142.91,0.00049315,120]
[320866219,1711651842695,-500.0,0.00049315,120]
[320866220,1711651842704,-1392.23,0.00049315,120]
[320866221,1711651842712,-1834.66,0.00049315,120]
[320866222,1711651842721,-2381.02,0.00049315,120]
[320866223,1711651842730,-1948.24,0.00049315,120]
[320866224,1711651842740,-500.0,0.00049315,120]
[320866225,1711651842749,-500.0,0.00049315,120]
[320866226,1711651842758,-500.0,0.00049315,120]
[320866227,1711651842767,-783.13,0.00049315,120]
[320866228,1711651842776,-562.83,0.00049315,120]
[320866229,1711651842785,-562.83,0.00049315,120]
[320866230,1711651842794,-2632.0,0.00049315,120]
[320866231,1711651842803,-2156.81,0.00049315,120]
[320866232,1711651842812,-1989.24,0.00049315,120]
[320866233,1711651842822,-500.0,0.00049315,120]
[320866234,1711651842831,-500.0,0.00049315,2]
[320866235,1711651842840,-272.784874,0.00049315,60]
[320866236,1711651842849,-500.0,0.00049315,120]
[320866237,1711651842859,-500.0,0.00049315,120]
[320866238,1711651842869,-707.7,0.00049315,120]
[320866239,1711651843072,-1964.02,0.00049315,120]
[320866240,1711651843082,-6635.9,0.00049315,120]
[320866241,1711651843091,-2780.21,0.00049315,120]
[320866242,1711651843101,-799.28,0.00049315,120]
[320866243,1711651843111,-1081.06,0.00049315,120]
[320866245,1711651843120,-500.0,0.00049315,120]
[320866247,1711651843129,-1717.67,0.00049315,120]
[320866249,1711651843138,-538.46,0.00049315,120]
[320866250,1711651843147,-500.0,0.00049315,2]
[320866251,1711651843156,-500.0,0.00049315,120]
[320866252,1711651843165,-500.0,0.00049315,120]
[320866254,1711651843174,-1916.66,0.00049315,120]
[320866255,1711651843183,-1597.01,0.00049315,120]
[320866257,1711651843192,-500.0,0.00049315,120]
[320866259,1711651843200,-1559.47,0.00049315,120]
[320866261,1711651843209,-1059.69,0.00049315,120]
[320866262,1711651843218,-1476.21,0.00049315,120]
[320866264,1711651843227,-884.69,0.00049315,120]
[320866266,1711651843237,-505.58,0.00049315,120]
[320866268,1711651843246,-160.70926549,0.00049315,120]
[320866270,1711651843256,-500.0,0.00049315,120]
[320866272,1711651843265,-1529.06,0.00049315,120]
[320866274,1711651843275,-1239.6,0.00049315,120]
[320866276,1711651843285,-500.0,0.00049315,120]
[320866278,1711651843294,-728.06,0.00049315,120]
[320866280,1711651843303,-1646.31,0.00049315,120]
[320866282,1711651843312,-620.18,0.00049315,120]
[320866283,1711651843321,-1183.24,0.00049315,120]
[320866284,1711651843332,-500.0,0.00049315,120]
[320866285,1711651843341,-5079.76,0.00049315,120]
[320866286,1711651843350,-151.0,0.00049315,120]
[320866287,1711651843359,-151.0,0.00049315,3]
[320866288,1711651843368,-151.0,0.00049315,120]
[320866289,1711651843377,-151.0,0.00049315,120]
[320866290,1711651843386,-151.0,0.00049315,120]
[320866291,1711651843396,-151.0,0.00049315,120]
[320866292,1711651843405,-151.0,0.00049315,120]
[320866293,1711651843414,-151.0,0.00049315,120]
[320866294,1711651843423,-217.640896,0.00049315,120]
[320866295,1711651843432,-151.0,0.00049315,60]
[320866296,1711651843442,-364.08477,0.00049315,120]
[320866297,1711651843451,-158.31544,0.00049315,120]
[320866298,1711651843460,-364.08477,0.00049315,120]
[320866299,1711651843469,-158.31544,0.00049315,120]
[320866300,1711651843478,-151.0,0.00049315,30]
[320866301,1711651843487,-180.995563,0.00049315,30]
[320866302,1711651843496,-365.9713101,0.00049352,2]
[320866303,1711651843505,-162.27,0.00049359,2]
[320866304,1711651843515,-365.9713101,0.00049421,2]
[320866305,1711651843524,-151.38114378,0.00049489,42]
[320866306,1711651843534,-160.3639009,0.00049489,25]
[320866307,1711651843543,-166.86115363,0.00049489,2]
[320866308,1711651843552,-365.9713101,0.00049489,2]
[320866309,1711651843561,-200.81192181,0.00049586,2]
[320866310,1711651843570,-150.0,0.00049588,30]
[320866311,1711651843580,-150.0,0.00049588,30]
[320866312,1711651843590,-2595.41449847,0.00049588,4]
[320866313,1711651843599,-201.75630094,0.00049588,120]
[320866314,1711651843609,-500.0,0.00049588,120]
[320866315,1711651843619,-500.0,0.00049588,120]
[320866316,1711651843628,-1258.6,0.00049588,120]
[320866317,1711651843638,-1258.6,0.00049588,120]
[320866318,1711651843647,-562.83,0.00049588,120]
[320866319,1711651843657,-562.83,0.00049588,120]
[320866320,1711651843666,-500.0,0.00049589,120]
[320866321,1711651843675,-500.0,0.00049589,120]
[320866322,1711651843684,-500.0,0.00049589,120]
[320866323,1711651843693,-500.0,0.00049589,120]
[320866324,1711651843703,-500.0,0.00049589,120]
[320866325,1711651843712,-500.0,0.00049589,120]
[320866326,1711651843721,-500.0,0.00049589,120]
[320866327,1711651843731,-500.0,0.00049589,120]
[320866328,1711651843740,-500.0,0.00049589,120]
[320866329,1711651843750,-151.0,0.00049589,3]
[320866330,1711651843759,-500.0,0.00049589,120]
[320866331,1711651843767,-500.0,0.00049589,120]
[320866332,1711651843777,-500.0,0.00049589,120]
[320866333,1711651843786,-500.0,0.00049589,120]
[320866334,1711651843794,-1335.16,0.00049589,120]
[320866335,1711651843805,-500.0,0.00049589,120]
[320866336,1711651843814,-298.2606349,0.00049589,120]
[320866337,1711651843824,-500.0,0.00049589,120]
[320866338,1711651843834,-500.0,0.00049589,120]
[320866339,1711651843843,-500.0,0.00049589,120]
[320866340,1711651843853,-6110.126104,0.00049589,3]
[320866341,1711651843862,-608.05,0.00049589,120]
[320866342,1711651843871,-500.0,0.00049589,120]
[320866343,1711651843881,-530.07267928,0.00049589,120]
[320866344,1711651843890,-500.0,0.00049589,120]
[320866345,1711651843899,-500.0,0.00049589,120]
[320866346,1711651843908,-500.0,0.00049589,120]
[320866347,1711651843918,-500.0,0.00049589,120]
[320866348,1711651843927,-500.0,0.00049589,120]
[320866349,1711651843937,-509.92,0.00049589,120]
[320866350,1711651843946,-500.0,0.00049589,120]
[320866351,1711651843956,-648.82,0.00049589,120]
[320866352,1711651843965,-500.0,0.00049589,120]
[320866353,1711651843974,-500.0,0.00049589,120]
[320866354,1711651843983,-558.27,0.00049589,120]
[320866355,1711651843992,-500.0,0.00049589,120]
[320866356,1711651844002,-586.1,0.00049589,120]
[320866357,1711651844012,-500.0,0.00049589,120]
[320866358,1711651844024,-500.0,0.00049589,120]
[320866359,1711651844033,-500.0,0.00049589,120]
[320866360,1711651844043,-500.0,0.00049589,120]
[320866361,1711651844052,-892.97,0.00049589,120]
[320866362,1711651844062,-500.0,0.00049589,120]
[320866363,1711651844071,-500.0,0.00049589,120]
[320866364,1711651844081,-500.0,0.00049589,120]
[320866365,1711651844090,-500.0,0.00049589,120]
[320866366,1711651844100,-500.0,0.00049589,120]
[320866367,1711651844110,-500.0,0.00049589,120]
[320866368,1711651844120,-500.0,0.00049589,120]
[320866369,1711651844129,-500.0,0.00049589,120]
[320866370,1711651844138,-500.0,0.00049589,120]
[320866371,1711651844148,-243.531768,0.00049589,120]
[320866372,1711651844157,-670.83,0.00049589,120]
[320866373,1711651844167,-500.0,0.00049589,120]
[320866374,1711651844176,-500.0,0.00049589,120]
[320866375,1711651844185,-500.0,0.00049589,120]
[320866376,1711651844195,-500.0,0.00049589,120]
[320866377,1711651844204,-500.0,0.00049589,120]
[320866378,1711651844213,-500.0,0.00049589,120]
[320866379,1711651844222,-500.0,0.00049589,120]
[320866380,1711651844231,-603.98,0.00049589,120]
[320866381,1711651844241,-591.89,0.00049589,120]
[320866382,1711651844250,-623.75,0.00049589,120]
[320866383,1711651844259,-500.0,0.00049589,120]
[320866384,1711651844268,-500.0,0.00049589,120]
[320866385,1711651844277,-500.0,0.00049589,120]
[320866386,1711651844286,-500.0,0.00049589,120]
[320866387,1711651844296,-500.0,0.00049589,120]
[320866388,1711651844307,-500.0,0.00049589,120]
[320866389,1711651844317,-500.0,0.00049589,120]
[320866390,1711651844327,-500.0,0.00049589,120]
[320866391,1711651844336,-500.0,0.00049589,120]
[320866392,1711651844345,-500.0,0.00049589,120]
[320866393,1711651844354,-540.11,0.00049589,120]
[320866394,1711651844363,-678.11,0.00049589,120]
[320866395,1711651844373,-500.0,0.00049589,120]
[320866396,1711651844382,-500.0,0.00049589,120]
[320866397,1711651844392,-500.0,0.00049589,120]
[320866398,1711651844401,-584.17,0.00049589,120]
[320866399,1711651844410,-558.02,0.00049589,120]
[320866400,1711651844419,-500.0,0.00049589,120]
[320866401,1711651844428,-500.0,0.00049589,2]
[320866402,1711651844437,-500.0,0.00049589,120]
[320866403,1711651844446,-202.69,0.00049589,120]
[320866404,1711651844456,-909.25,0.00049589,120]
[320866405,1711651844465,-500.0,0.00049589,120]
[320866406,1711651844475,-500.0,0.00049589,120]
[320866407,1711651844484,-500.0,0.00049589,120]
[320866408,1711651844493,-500.0,0.00049589,120]
[320866409,1711651844503,-500.0,0.00049589,120]
[320866410,1711651844512,-577.56,0.00049589,120]
[320866411,1711651844521,-500.0,0.00049589,120]
[320866412,1711651844530,-500.0,0.00049589,120]
[320866413,1711651844539,-500.0,0.00049589,120]
[320866414,1711651844549,-500.0,0.00049589,120]
[320866415,1711651844558,-629.98,0.00049589,120]
[320866416,1711651844567,-500.0,0.00049589,120]
[320866417,1711651844577,-842.68,0.00049589,120]
[320866418,1711651844586,-500.0,0.00049589,120]
[320866419,1711651844594,-500.0,0.00049589,120]
[320866420,1711651844604,-908.45,0.00049589,120]
[320866421,1711651844613,-500.0,0.00049589,120]
[320866422,1711651844622,-500.0,0.00049589,30]
[320866423,1711651844632,-584.08,0.00049589,120]
[320866424,1711651844641,-500.0,0.00049589,120]
[320866425,1711651844651,-500.0,0.00049589,120]
[320866426,1711651844660,-598.61,0.00049589,120]
[320866427,1711651844669,-500.0,0.00049589,120]
[320866428,1711651844679,-1099.13,0.00049589,120]
[320866429,1711651844688,-151.0,0.00049589,120]
[320866430,1711651844697,-151.0,0.00049589,120]
[320866431,1711651844706,-151.0,0.00049589,120]
[320866432,1711651844715,-203.819346,0.00049589,120]
[320866433,1711651844725,-151.0,0.00049589,120]
[320866434,1711651844734,-151.0,0.00049589,120]
[320866435,1711651844743,-1038.12,0.00049589,120]
[320866436,1711651844753,-500.0,0.00049589,120]
[320866437,1711651844762,-151.0,0.00049589,120]
[320866438,1711651844772,-500.0,0.00049589,120]
[320866439,1711651844781,-151.0,0.00049589,120]
[320866440,1711651844790,-151.0,0.00049589,120]
[320866441,1711651844799,-233.88641,0.00049589,120]
[320866442,1711651844809,-500.0,0.00049589,120]
[320866443,1711651844819,-151.0,0.00049589,120]
[320866444,1711651844830,-687.07,0.00049589,120]
[320866445,1711651844840,-151.0,0.00049589,120]
[320866446,1711651844850,-151.0,0.00049589,120]
[320866447,1711651844859,-1129.03,0.00049589,120]
[320866448,1711651844869,-561.63,0.00049589,120]
[320866449,1711651844878,-199.36119073,0.00049589,120]
[320866450,1711651844888,-982.58,0.00049589,120]
[320866451,1711651844897,-500.0,0.00049589,120]
[320866452,1711651844907,-607.02,0.00049589,120]
[320866453,1711651844916,-500.0,0.00049589,120]
[320866454,1711651844925,-627.61,0.00049589,120]
[320866455,1711651844935,-500.0,0.00049589,120]
[320866456,1711651844944,-500.0,0.00049589,120]
[320866457,1711651844954,-703.03,0.00049589,120]
[320866458,1711651844964,-151.0,0.00049589,60]
[320866459,1711651844973,-151.0,0.00049589,60]
[320866460,1711651844982,-151.0,0.00049589,60]
[320866461,1711651844992,-500.0,0.00049589,120]
[320866462,1711651845002,-500.0,0.00049589,120]
[320866463,1711651845013,-500.0,0.00049589,120]
[320866464,1711651845024,-500.0,0.00049589,120]
[320866465,1711651845033,-500.0,0.00049589,120]
[320866466,1711651845043,-1066.63,0.00049589,120]
[320866467,1711651845053,-1037.88,0.00049589,120]
[320866468,1711651845063,-500.0,0.00049589,120]
[320866469,1711651845072,-500.0,0.00049589,120]
[320866470,1711651845083,-500.0,0.00049589,120]
[320866471,1711651845092,-500.0,0.00049589,120]
[320866472,1711651845104,-500.0,0.00049589,120]
[320866473,1711651845114,-500.0,0.00049589,120]
[320866474,1711651845124,-500.0,0.00049589,120]
[320866475,1711651845133,-312.55,0.00049589,120]
[320866476,1711651845143,-500.0,0.00049589,120]
[320866477,1711651845152,-501.44,0.00049589,120]
[320866478,1711651845162,-793.0,0.00049589,120]
[320866479,1711651845172,-759.68,0.00049589,120]
[320866480,1711651845182,-500.0,0.00049589,120]
[320866481,1711651845192,-500.0,0.00049589,120]
[320866482,1711651845202,-500.0,0.00049589,120]
[320866483,1711651845211,-500.0,0.00049589,120]
[320866484,1711651845221,-500.0,0.00049589,120]
[320866485,1711651845230,-500.0,0.00049589,120]
[320866486,1711651845240,-500.0,0.00049589,120]
[320866488,1711651845249,-713.47,0.00049589,120]
[320866489,1711651845258,-961.61,0.00049589,120]
[320866490,1711651845268,-500.0,0.00049589,120]
[320866491,1711651845277,-336.77145417,0.00049589,120]
[320866492,1711651845287,-541.86,0.00049589,120]
[320866493,1711651845297,-508.98468566,0.00049589,120]
[320866494,1711651845307,-500.0,0.00049589,120]
[320866495,1711651845317,-500.0,0.00049589,120]
[320866502,1711651845387,-585.26,0.00049589,120]
[320866503,1711651845398,-502.96,0.00049589,120]
[320866504,1711651845407,-500.0,0.00049589,120]
[320866505,1711651845416,-1416.4,0.00049589,120]
[320866506,1711651845426,-500.0,0.00049589,120]
[320866507,1711651845436,-1459.23,0.00049589,120]
[320866508,1711651845445,-1526.66,0.00049589,120]
[320866509,1711651845455,-955.88,0.00049589,120]
[320866510,1711651845464,-546.70088462,0.00049589,120]
[320866511,1711651845474,-500.0,0.00049589,120]
[320866512,1711651845483,-1779.8,0.00049589,120]
[320866513,1711651845492,-1592.82,0.00049589,120]
[320866514,1711651845502,-500.0,0.00049589,120]
[320866515,1711651845511,-500.0,0.00049589,120]
[320866516,1711651845520,-500.0,0.00049589,120]
[320866517,1711651845529,-3330.85,0.00049589,120]
[320866518,1711651845538,-500.0,0.00049589,120]
[320866519,1711651845547,-500.0,0.00049589,120]
[320866520,1711651845556,-1771.49,0.00049589,120]
[320866521,1711651845565,-586.7,0.00049589,120]
[320866522,1711651845574,-710.17,0.00049589,120]
[320866523,1711651845585,-1289.08,0.00049589,120]
[320866524,1711651845595,-552.21,0.00049589,120]
[320866525,1711651845605,-1834.48,0.00049589,120]
[320866526,1711651845614,-500.0,0.00049589,120]
[320866527,1711651845623,-500.0,0.00049589,120]
[320866528,1711651845632,-849.79,0.00049589,2]
[320866529,1711651845642,-852.45,0.00049589,120]
[320866530,1711651845650,-1790.13,0.00049589,120]
[320866531,1711651845660,-500.0,0.00049589,120]
[320866532,1711651845669,-1773.69,0.00049589,120]
[320866533,1711651845678,-500.0,0.00049589,120]
[320866534,1711651845687,-565.07,0.00049589,120]
[320866535,1711651845696,-2394.52,0.00049589,120]
[320866536,1711651845706,-2190.05,0.00049589,120]
[320866537,1711651845715,-1442.78,0.00049589,120]
[320866538,1711651845724,-500.0,0.00049589,120]
[320866539,1711651845734,-500.0,0.00049589,120]
[320866540,1711651845743,-1941.21,0.00049589,120]
[320866541,1711651845753,-510.58,0.00049589,120]
[320866542,1711651845762,-1920.28,0.00049589,120]
[320866543,1711651845772,-922.31,0.00049589,120]
[320866544,1711651845781,-625.75,0.00049589,120]
[320866545,1711651845790,-500.0,0.00049589,120]
[320866546,1711651845799,-500.0,0.00049589,120]
[320866547,1711651845809,-781.48,0.00049589,120]
[320866548,1711651845818,-500.0,0.00049589,120]
[320866549,1711651845830,-500.0,0.00049589,120]
[320866550,1711651845839,-1717.99,0.00049589,120]
[320866551,1711651845849,-500.0,0.00049589,120]
[320866552,1711651845858,-2153.89,0.00049589,120]
[320866553,1711651845867,-2490.14,0.00049589,120]
[320866554,1711651845876,-1512.94,0.00049589,120]
[320866555,1711651845885,-500.0,0.00049589,120]
[320866556,1711651845894,-500.0,0.00049589,120]
[320866557,1711651845903,-1979.91,0.00049589,120]
[320866559,1711651845913,-500.0,0.00049589,120]
[320866560,1711651845922,-1145.48,0.00049589,120]
[320866562,1711651845931,-1019.07,0.00049589,120]
[320866564,1711651845941,-1565.87,0.00049589,120]
[320866566,1711651845951,-866.22,0.00049589,120]
[320866568,1711651845960,-9854.26,0.00049589,120]
[320866570,1711651845969,-500.0,0.00049589,120]
[320866572,1711651845979,-3247.33,0.00049589,120]
[320866574,1711651845989,-500.0,0.00049589,120]
[320866576,1711651845998,-500.0,0.00049589,120]
[320866577,1711651846008,-10062.42,0.00049589,120]
[320866579,1711651846017,-11686.85,0.00049589,120]
[320866581,1711651846029,-1654.73,0.00049589,120]
[320866583,1711651846039,-500.0,0.00049589,120]
[320866585,1711651846049,-2650.37,0.00049589,120]
[320866586,1711651846058,-769.23,0.00049589,120]
[320866587,1711651846069,-500.0,0.00049589,120]
[320866588,1711651846080,-862.72,0.00049589,120]
[320866589,1711651846090,-500.0,0.00049589,120]
[320866590,1711651846100,-2565.61,0.00049589,120]
[320866591,1711651846110,-2323.09,0.00049589,120]
[320866592,1711651846121,-847.69,0.00049589,120]
[320866593,1711651846131,-1122.04,0.00049589,120]
[320866594,1711651846141,-508.98,0.00049589,7]
[320866595,1711651846150,-621.0,0.00049589,120]
[320866596,1711651846160,-2298.09,0.00049589,120]
[320866597,1711651846169,-1671.65,0.00049589,120]
[320866598,1711651846178,-500.0,0.00049589,120]
[320866599,1711651846189,-500.0,0.00049589,120]
[320866600,1711651846198,-872.13,0.00049589,120]
[320866601,1711651846208,-629.46,0.00049589,120]
[320866602,1711651846217,-1997.89,0.00049589,120]
[320866603,1711651846227,-500.0,0.00049589,120]
[320866604,1711651846237,-1278.26,0.00049589,120]
[320866605,1711651846246,-542.61,0.00049589,120]
[320866606,1711651846255,-1219.52,0.00049589,120]
[320866607,1711651846265,-500.0,0.00049589,120]
[320866608,1711651846274,-500.0,0.00049589,120]
[320866609,1711651846283,-564.99,0.00049589,120]
[320866610,1711651846292,-3238.2,0.00049589,120]
[320866611,1711651846302,-1608.26,0.00049589,120]
[320866612,1711651846311,-2336.06,0.00049589,120]
[320866613,1711651846319,-627.05,0.00049589,120]
[320866614,1711651846330,-1068.05,0.00049589,120]
[320866615,1711651846339,-500.0,0.00049589,120]
[320866616,1711651846349,-500.0,0.00049589,120]
[320866617,1711651846358,-2574.96,0.00049589,120]
[320866618,1711651846367,-1791.4,0.00049589,120]
[320866619,1711651846376,-500.0,0.00049589,120]
[320866620,1711651846385,-8889.98,0.00049589,120]
[320866621,1711651846394,-1074.32,0.00049589,120]
[320866622,1711651846403,-500.0,0.00049589,120]
[320866623,1711651846412,-1595.79,0.00049589,120]
[320866624,1711651846423,-683.43,0.00049589,120]
[320866625,1711651846434,-3067.63,0.00049589,120]
[320866626,1711651846443,-1607.31,0.00049589,120]
[320866627,1711651846452,-500.0,0.00049589,120]
[320866628,1711651846461,-1146.78,0.00049589,120]
[320866629,1711651846470,-500.0,0.00049589,120]
[320866630,1711651846479,-1460.28,0.00049589,120]
[320866631,1711651846488,-531.04,0.00049589,120]
[320866632,1711651846497,-1274.48,0.00049589,120]
[320866633,1711651846507,-1238.95,0.00049589,120]
[320866634,1711651846516,-500.0,0.00049589,120]
[320866635,1711651846526,-1148.08,0.00049589,120]
[320866636,1711651846535,-594.05,0.00049589,120]
[320866637,1711651846545,-1334.07,0.00049589,120]
[320866638,1711651846554,-1285.39,0.00049589,120]
[320866639,1711651846563,-364.08477,0.00049589,120]
[320866640,1711651846571,-1855.35,0.00049589,120]
[320866641,1711651846583,-556.47,0.00049589,120]
[320866642,1711651846592,-364.08477,0.00049589,120]
[320866643,1711651846601,-364.08477,0.00049589,120]
[320866644,1711651846611,-364.08477,0.00049589,120]